[Event "Titled Tuesday Blitz December 13 Early 2022"]
[White "Manelyuk, Daniil"]
[Black "Lauridsen, Jesper Morch"]
[WhiteFideId "44173920"]
[BlackFideId "1401890"]
[WhiteElo "2210"]
[BlackElo "2270"]
[Result "1-0"]
[Round "01"]
[TimeControl "180+1"]
[Date "2022.12.14"]
[WhiteClock "0:01:28"]
[BlackClock "0:00:11"]

1. e4 {[%clk 0:02:55]}  c5 {[%clk 0:02:59]} 2. Nf3 {[%clk 0:02:54]}  d6 {[%clk 0:02:59]} 3. d4 {[%clk 0:02:54]}  cxd4 {[%clk 0:02:59]} 4. Nxd4 {[%clk 0:02:55]}  Nc6 {[%clk 0:02:58]} 5. Nc3 {[%clk 0:02:50]}  Bd7 {[%clk 0:02:55]} 6. Be3 {[%clk 0:02:46]}  Nf6 {[%clk 0:02:53]} 7. f3 {[%clk 0:02:43]}  g6 {[%clk 0:02:52]} 8. Qd2 {[%clk 0:02:41]}  Bg7 {[%clk 0:02:52]} 9. O-O-O {[%clk 0:02:40]}  O-O {[%clk 0:02:49]} 10. h4 {[%clk 0:02:39]}  Qa5 {[%clk 0:02:40]} 11. Kb1 {[%clk 0:02:36]}  Rfc8 {[%clk 0:02:33]} 12. g4 {[%clk 0:02:31]}  Rab8 {[%clk 0:02:03]} 13. h5 {[%clk 0:02:25]}  Nxd4 {[%clk 0:01:59]} 14. Bxd4 {[%clk 0:02:24]}  b5 {[%clk 0:01:53]} 15. hxg6 {[%clk 0:02:12]}  fxg6 {[%clk 0:01:41]} 16. Bxf6 {[%clk 0:02:06]}  Bxf6 {[%clk 0:01:31]} 17. Nd5 {[%clk 0:02:06]}  Qxd2 {[%clk 0:01:23]} 18. Nxf6+ {[%clk 0:02:07]}  exf6 {[%clk 0:01:20]} 19. Rxd2 {[%clk 0:02:08]}  Rb6 {[%clk 0:01:13]} 20. Rdh2 {[%clk 0:02:08]}  h5 {[%clk 0:01:00]} 21. gxh5 {[%clk 0:02:07]}  g5 {[%clk 0:01:01]} 22. f4 {[%clk 0:02:07]}  gxf4 {[%clk 0:00:49]} 23. Rf2 {[%clk 0:02:06]}  Re8 {[%clk 0:00:37]} 24. Rxf4 {[%clk 0:02:05]}  d5 {[%clk 0:00:36]} 25. Bd3 {[%clk 0:02:03]}  Rbe6 {[%clk 0:00:25]} 26. Rhh4 {[%clk 0:01:49]}  dxe4 {[%clk 0:00:22]} 27. Rxe4 {[%clk 0:01:38]}  Bc6 {[%clk 0:00:22]} 28. Rxe6 {[%clk 0:01:37]}  Rxe6 {[%clk 0:00:22]} 29. b3 {[%clk 0:01:37]}  a5 {[%clk 0:00:19]} 30. Kb2 {[%clk 0:01:37]}  a4 {[%clk 0:00:18]} 31. Kc3 {[%clk 0:01:35]}  axb3 {[%clk 0:00:17]} 32. axb3 {[%clk 0:01:35]}  Bf3 {[%clk 0:00:17]} 33. Bxb5 {[%clk 0:01:33]}  Re5 {[%clk 0:00:16]} 34. Bc4+ {[%clk 0:01:33]}  Kg7 {[%clk 0:00:17]} 35. h6+ {[%clk 0:01:33]}  Kh8 {[%clk 0:00:16]} 36. Rf4 {[%clk 0:01:32]}  Re3+ {[%clk 0:00:15]} 37. Kd2 {[%clk 0:01:30]}  Re5 {[%clk 0:00:11]} 38. Rxf3 {[%clk 0:01:30]}  Kh7 {[%clk 0:00:11]} 39. Rxf6 {[%clk 0:01:30]}  Re7 {[%clk 0:00:11]} 40. Rf7+ {[%clk 0:01:28]} 1-0


[Site "https://www.chess.com"]

[Event "Titled Tuesday Blitz December 13 Early 2022"]
[White "Mazurkiewicz, Michal"]
[Black "Lortkipanidze, Nodar"]
[WhiteFideId "1124943"]
[BlackFideId "13604058"]
[WhiteElo "2081"]
[BlackElo "2293"]
[Result "0-1"]
[Round "01"]
[TimeControl "180+1"]
[Date "2022.12.14"]
[WhiteClock "0:00:03"]
[BlackClock "0:00:21"]

1. e4 {[%clk 0:02:59]}  c5 {[%clk 0:02:58]} 2. Nf3 {[%clk 0:02:58]}  d6 {[%clk 0:02:58]} 3. g3 {[%clk 0:02:58]}  Nc6 {[%clk 0:02:57]} 4. Bg2 {[%clk 0:02:58]}  g6 {[%clk 0:02:58]} 5. O-O {[%clk 0:02:58]}  Bg7 {[%clk 0:02:59]} 6. d3 {[%clk 0:02:58]}  Bg4 {[%clk 0:02:50]} 7. h3 {[%clk 0:02:58]}  Bxf3 {[%clk 0:02:50]} 8. Qxf3 {[%clk 0:02:59]}  e6 {[%clk 0:02:49]} 9. c3 {[%clk 0:02:59]}  Nge7 {[%clk 0:02:48]} 10. Be3 {[%clk 0:03:00]}  O-O {[%clk 0:02:48]} 11. Qd1 {[%clk 0:02:59]}  Rb8 {[%clk 0:02:44]} 12. a4 {[%clk 0:02:59]}  a6 {[%clk 0:02:44]} 13. d4 {[%clk 0:02:59]}  cxd4 {[%clk 0:02:43]} 14. cxd4 {[%clk 0:03:00]}  d5 {[%clk 0:02:43]} 15. e5 {[%clk 0:02:59]}  Nf5 {[%clk 0:02:38]} 16. Qd2 {[%clk 0:02:23]}  Qb6 {[%clk 0:02:26]} 17. a5 {[%clk 0:02:09]}  Qa7 {[%clk 0:02:19]} 18. Rd1 {[%clk 0:01:59]}  Rbc8 {[%clk 0:02:18]} 19. Nc3 {[%clk 0:01:59]}  Nxe3 {[%clk 0:02:03]} 20. Qxe3 {[%clk 0:02:00]}  Nb4 {[%clk 0:02:01]} 21. Ra4 {[%clk 0:01:46]}  Nc6 {[%clk 0:01:47]} 22. Bf1 {[%clk 0:01:46]}  f6 {[%clk 0:01:46]} 23. exf6 {[%clk 0:01:43]}  Rxf6 {[%clk 0:01:47]} 24. Ne2 {[%clk 0:01:42]}  Rcf8 {[%clk 0:01:26]} 25. f4 {[%clk 0:01:39]}  e5 {[%clk 0:01:25]} 26. fxe5 {[%clk 0:01:30]}  Nxe5 {[%clk 0:01:24]} 27. Bg2 {[%clk 0:01:08]}  Nf3+ {[%clk 0:01:02]} 28. Kh1 {[%clk 0:01:05]}  Qb8 {[%clk 0:01:00]} 29. Rf1 {[%clk 0:00:56]}  Re8 {[%clk 0:00:58]} 30. Qd3 {[%clk 0:00:32]}  Ng5 {[%clk 0:00:44]} 31. Nf4 {[%clk 0:00:33]}  Ne4 {[%clk 0:00:38]} 32. Kh2 {[%clk 0:00:32]}  Qd6 {[%clk 0:00:32]} 33. Raa1 {[%clk 0:00:28]}  g5 {[%clk 0:00:31]} 34. Nh5 {[%clk 0:00:24]}  Rxf1 {[%clk 0:00:29]} 35. Rxf1 {[%clk 0:00:25]}  Bh8 {[%clk 0:00:28]} 36. Qf3 {[%clk 0:00:22]}  Qg6 {[%clk 0:00:27]} 37. Qg4 {[%clk 0:00:18]}  Bxd4 {[%clk 0:00:27]} 38. Rd1 {[%clk 0:00:12]}  Be5 {[%clk 0:00:27]} 39. Rxd5 {[%clk 0:00:11]}  Nxg3 {[%clk 0:00:22]} 40. Nxg3 {[%clk 0:00:07]}  h5 {[%clk 0:00:22]} 41. Qf3 {[%clk 0:00:03]}  h4 {[%clk 0:00:18]} 42. Rxe5 {[%clk 0:00:03]}  Rxe5 {[%clk 0:00:19]} 43. Ne4 {[%clk 0:00:03]}  Kg7 {[%clk 0:00:19]} 44. Nf6 {[%clk 0:00:03]}  Qxf6 {[%clk 0:00:19]} 45. Qxb7+ {[%clk 0:00:03]}  Kh6 {[%clk 0:00:19]} 46. Qc8 {[%clk 0:00:04]}  Qf4+ {[%clk 0:00:19]} 47. Kg1 {[%clk 0:00:03]}  Re1+ {[%clk 0:00:20]} 48. Bf1 {[%clk 0:00:03]}  Qxf1+ {[%clk 0:00:20]} 49. Kh2 {[%clk 0:00:03]}  Re2# {[%clk 0:00:21]} 0-1


[Site "https://www.chess.com"]

[Event "Titled Tuesday Blitz December 13 Early 2022"]
[White "Mihajlov, Sebastian"]
[Black "Sala, Giulia"]
[WhiteFideId "1512110"]
[BlackFideId "2840451"]
[WhiteElo "2464"]
[BlackElo "1769"]
[Result "1-0"]
[Round "01"]
[TimeControl "180+1"]
[Date "2022.12.14"]
[WhiteClock "0:00:20"]
[BlackClock "0:02:01"]

1. e4 {[%clk 0:00:49]}  b6 {[%clk 0:03:00]} 2. d4 {[%clk 0:00:40]}  Bb7 {[%clk 0:03:00]} 3. Nc3 {[%clk 0:00:41]}  e6 {[%clk 0:03:00]} 4. Bd3 {[%clk 0:00:41]}  d5 {[%clk 0:03:00]} 5. e5 {[%clk 0:00:40]}  c5 {[%clk 0:02:59]} 6. dxc5 {[%clk 0:00:35]}  bxc5 {[%clk 0:03:00]} 7. Nf3 {[%clk 0:00:32]}  Nc6 {[%clk 0:02:59]} 8. O-O {[%clk 0:00:30]}  Qc7 {[%clk 0:02:58]} 9. Re1 {[%clk 0:00:30]}  Nge7 {[%clk 0:02:54]} 10. Nb5 {[%clk 0:00:31]}  Qb6 {[%clk 0:02:43]} 11. Nd6+ {[%clk 0:00:31]}  Kd7 {[%clk 0:02:43]} 12. Nxf7 {[%clk 0:00:32]}  Rg8 {[%clk 0:02:43]} 13. Bxh7 {[%clk 0:00:32]}  g6 {[%clk 0:02:33]} 14. Bxg8 {[%clk 0:00:32]}  Nxg8 {[%clk 0:02:34]} 15. c4 {[%clk 0:00:32]}  Ke8 {[%clk 0:02:32]} 16. cxd5 {[%clk 0:00:32]}  Kxf7 {[%clk 0:02:31]} 17. Ng5+ {[%clk 0:00:31]}  Ke8 {[%clk 0:02:30]} 18. dxc6 {[%clk 0:00:30]}  Qxc6 {[%clk 0:02:29]} 19. f3 {[%clk 0:00:30]}  c4 {[%clk 0:02:27]} 20. Qe2 {[%clk 0:00:29]}  Rd8 {[%clk 0:02:27]} 21. Be3 {[%clk 0:00:29]}  Ne7 {[%clk 0:02:27]} 22. Rad1 {[%clk 0:00:30]}  Nd5 {[%clk 0:02:26]} 23. Bf2 {[%clk 0:00:30]}  Be7 {[%clk 0:02:22]} 24. Ne4 {[%clk 0:00:30]}  Bb4 {[%clk 0:02:20]} 25. Rf1 {[%clk 0:00:29]}  Kf7 {[%clk 0:02:18]} 26. a3 {[%clk 0:00:29]}  Ba5 {[%clk 0:02:14]} 27. Ng5+ {[%clk 0:00:28]}  Kg7 {[%clk 0:02:13]} 28. Qe4 {[%clk 0:00:27]}  Qb5 {[%clk 0:02:11]} 29. Nxe6+ {[%clk 0:00:27]}  Kg8 {[%clk 0:02:04]} 30. Nxd8 {[%clk 0:00:28]}  Ne3 {[%clk 0:02:04]} 31. Qxe3 {[%clk 0:00:21]}  Qxb2 {[%clk 0:02:02]} 32. Nxb7 {[%clk 0:00:19]}  Qxb7 {[%clk 0:02:01]} 33. e6 {[%clk 0:00:20]} 1-0


[Site "https://www.chess.com"]

[Event "Titled Tuesday Blitz December 13 Early 2022"]
[White "Milikow, Yoav"]
[Black "Tomaszewski, Kacper"]
[WhiteFideId "2822237"]
[BlackFideId "1127373"]
[WhiteElo "2416"]
[BlackElo "2211"]
[Result "1-0"]
[Round "01"]
[TimeControl "180+1"]
[Date "2022.12.14"]
[WhiteClock "0:00:29"]
[BlackClock "0:00:02"]

1. d4 {[%clk 0:03:00]}  d5 {[%clk 0:02:58]} 2. c4 {[%clk 0:02:59]}  e6 {[%clk 0:02:57]} 3. Nc3 {[%clk 0:02:56]}  Nf6 {[%clk 0:02:57]} 4. cxd5 {[%clk 0:02:53]}  exd5 {[%clk 0:02:58]} 5. Bg5 {[%clk 0:02:54]}  c6 {[%clk 0:02:58]} 6. e3 {[%clk 0:02:53]}  Bf5 {[%clk 0:02:58]} 7. Qf3 {[%clk 0:02:53]}  Bc8 {[%clk 0:02:58]} 8. Bxf6 {[%clk 0:02:46]}  Qxf6 {[%clk 0:02:59]} 9. Qxf6 {[%clk 0:02:46]}  gxf6 {[%clk 0:03:00]} 10. Bd3 {[%clk 0:02:46]}  Nd7 {[%clk 0:03:00]} 11. Nf3 {[%clk 0:02:44]}  Nb6 {[%clk 0:02:57]} 12. Nh4 {[%clk 0:02:43]}  a5 {[%clk 0:02:55]} 13. Ne2 {[%clk 0:02:42]}  Nc4 {[%clk 0:02:46]} 14. Rb1 {[%clk 0:02:35]}  b5 {[%clk 0:02:40]} 15. Ng3 {[%clk 0:02:33]}  Bb4+ {[%clk 0:02:31]} 16. Ke2 {[%clk 0:02:33]}  Bd7 {[%clk 0:02:10]} 17. Rhc1 {[%clk 0:02:11]}  a4 {[%clk 0:01:48]} 18. Bf5 {[%clk 0:02:04]}  Nd2 {[%clk 0:01:42]} 19. Ra1 {[%clk 0:02:01]}  Nc4 {[%clk 0:01:41]} 20. Rc2 {[%clk 0:01:59]}  Nd6 {[%clk 0:01:21]} 21. Bxd7+ {[%clk 0:01:57]}  Kxd7 {[%clk 0:01:21]} 22. Nhf5 {[%clk 0:01:55]}  a3 {[%clk 0:01:11]} 23. b3 {[%clk 0:01:53]}  h5 {[%clk 0:00:57]} 24. Nxd6 {[%clk 0:01:46]}  Bxd6 {[%clk 0:00:58]} 25. Nf5 {[%clk 0:01:46]}  h4 {[%clk 0:00:49]} 26. Rac1 {[%clk 0:01:44]}  Ra6 {[%clk 0:00:43]} 27. Kf3 {[%clk 0:01:43]}  Rh5 {[%clk 0:00:29]} 28. Nxd6 {[%clk 0:01:24]}  Kxd6 {[%clk 0:00:29]} 29. Kg4 {[%clk 0:01:22]}  Rg5+ {[%clk 0:00:29]} 30. Kh3 {[%clk 0:01:22]}  Kd7 {[%clk 0:00:21]} 31. f4 {[%clk 0:01:21]}  Rh5 {[%clk 0:00:20]} 32. Kg4 {[%clk 0:01:22]}  Rh6 {[%clk 0:00:20]} 33. Kf5 {[%clk 0:01:18]}  Rb6 {[%clk 0:00:20]} 34. Kg4 {[%clk 0:01:11]}  Ra6 {[%clk 0:00:20]} 35. Kh3 {[%clk 0:01:11]}  Rb6 {[%clk 0:00:20]} 36. b4 {[%clk 0:01:08]}  Ra6 {[%clk 0:00:20]} 37. Rc3 {[%clk 0:01:08]}  Ra4 {[%clk 0:00:20]} 38. Rxc6 {[%clk 0:00:58]}  Rxb4 {[%clk 0:00:21]} 39. f5 {[%clk 0:00:53]}  Ke7 {[%clk 0:00:15]} 40. Rc8 {[%clk 0:00:52]}  Rc4 {[%clk 0:00:14]} 41. R1xc4 {[%clk 0:00:49]}  bxc4 {[%clk 0:00:06]} 42. Ra8 {[%clk 0:00:49]}  Kd6 {[%clk 0:00:05]} 43. Rxa3 {[%clk 0:00:49]}  Rh5 {[%clk 0:00:05]} 44. Ra6+ {[%clk 0:00:48]}  Ke7 {[%clk 0:00:04]} 45. Ra7+ {[%clk 0:00:48]}  Kd6 {[%clk 0:00:04]} 46. Kg4 {[%clk 0:00:36]}  Rg5+ {[%clk 0:00:05]} 47. Kf4 {[%clk 0:00:37]}  Rxg2 {[%clk 0:00:05]} 48. Rxf7 {[%clk 0:00:37]}  Rxa2 {[%clk 0:00:04]} 49. Rxf6+ {[%clk 0:00:38]}  Kd7 {[%clk 0:00:04]} 50. Ke5 {[%clk 0:00:34]}  c3 {[%clk 0:00:04]} 51. Rd6+ {[%clk 0:00:34]}  Ke7 {[%clk 0:00:03]} 52. f6+ {[%clk 0:00:32]}  Kf7 {[%clk 0:00:02]} 53. Rd7+ {[%clk 0:00:32]}  Kg6 {[%clk 0:00:02]} 54. Rg7+ {[%clk 0:00:33]}  Kh6 {[%clk 0:00:03]} 55. Rc7 {[%clk 0:00:33]}  c2 {[%clk 0:00:03]} 56. Kxd5 {[%clk 0:00:30]}  h3 {[%clk 0:00:02]} 57. Ke4 {[%clk 0:00:29]} 1-0


[Site "https://www.chess.com"]

[Event "Titled Tuesday Blitz December 13 Early 2022"]
[White "Milosevic, Milos"]
[Black "Bernat, David"]
[WhiteFideId "964875"]
[BlackFideId "2099225"]
[WhiteElo "2314"]
[BlackElo "2316"]
[Result "1-0"]
[Round "01"]
[TimeControl "180+1"]
[Date "2022.12.14"]
[WhiteClock "0:01:11"]
[BlackClock "0:00:43"]

1. e4 {[%clk 0:02:57]}  c5 {[%clk 0:02:59]} 2. Nf3 {[%clk 0:02:56]}  g6 {[%clk 0:02:59]} 3. h4 {[%clk 0:02:55]}  h5 {[%clk 0:02:59]} 4. d4 {[%clk 0:02:54]}  cxd4 {[%clk 0:02:59]} 5. c3 {[%clk 0:02:55]}  Bg7 {[%clk 0:02:59]} 6. Bc4 {[%clk 0:02:55]}  e6 {[%clk 0:02:58]} 7. cxd4 {[%clk 0:02:53]}  d5 {[%clk 0:02:59]} 8. exd5 {[%clk 0:02:52]}  exd5 {[%clk 0:02:59]} 9. Bb5+ {[%clk 0:02:52]}  Nc6 {[%clk 0:03:00]} 10. O-O {[%clk 0:02:48]}  Ne7 {[%clk 0:03:00]} 11. Bg5 {[%clk 0:02:43]}  O-O {[%clk 0:02:59]} 12. Re1 {[%clk 0:02:44]}  Be6 {[%clk 0:02:59]} 13. Nc3 {[%clk 0:02:40]}  Qb6 {[%clk 0:02:55]} 14. Qd2 {[%clk 0:02:21]}  Nf5 {[%clk 0:02:51]} 15. Bxc6 {[%clk 0:02:10]}  bxc6 {[%clk 0:02:52]} 16. Na4 {[%clk 0:02:08]}  Qb5 {[%clk 0:02:51]} 17. Nc5 {[%clk 0:02:07]}  Rae8 {[%clk 0:02:22]} 18. a4 {[%clk 0:02:04]}  Qb6 {[%clk 0:02:15]} 19. b4 {[%clk 0:01:59]}  Bc8 {[%clk 0:01:57]} 20. Bf4 {[%clk 0:01:57]}  Qd8 {[%clk 0:01:34]} 21. g3 {[%clk 0:01:53]}  Rxe1+ {[%clk 0:01:28]} 22. Rxe1 {[%clk 0:01:54]}  Re8 {[%clk 0:01:28]} 23. Be5 {[%clk 0:01:51]}  Bh6 {[%clk 0:01:24]} 24. Bf4 {[%clk 0:01:28]}  Bg7 {[%clk 0:01:21]} 25. Ne5 {[%clk 0:01:23]}  Nd6 {[%clk 0:01:17]} 26. Nxc6 {[%clk 0:01:21]}  Rxe1+ {[%clk 0:01:17]} 27. Qxe1 {[%clk 0:01:21]}  Qf6 {[%clk 0:00:45]} 28. Bxd6 {[%clk 0:01:17]}  Qxd6 {[%clk 0:00:44]} 29. Qe8+ {[%clk 0:01:17]}  Qf8 {[%clk 0:00:43]} 30. Qxc8 {[%clk 0:01:11]} 1-0


[Site "https://www.chess.com"]

[Event "Titled Tuesday Blitz December 13 Early 2022"]
[White "Mogirzan, Matei-Valeriu"]
[Black "Bazarov, Konstantin"]
[WhiteFideId "1257455"]
[BlackFideId "4137000"]
[WhiteElo "1733"]
[BlackElo "2228"]
[Result "0-1"]
[Round "01"]
[TimeControl "180+1"]
[Date "2022.12.14"]
[WhiteClock "0:00:03"]
[BlackClock "0:00:21"]

1. e4 {[%clk 0:03:00]}  b6 {[%clk 0:02:51]} 2. d4 {[%clk 0:03:00]}  Bb7 {[%clk 0:02:51]} 3. Nc3 {[%clk 0:03:01]}  e6 {[%clk 0:02:51]} 4. Nf3 {[%clk 0:03:00]}  Bb4 {[%clk 0:02:50]} 5. Bd3 {[%clk 0:02:59]}  Nf6 {[%clk 0:02:50]} 6. e5 {[%clk 0:02:58]}  Nd5 {[%clk 0:02:49]} 7. Bd2 {[%clk 0:02:58]}  Nxc3 {[%clk 0:02:49]} 8. bxc3 {[%clk 0:02:59]}  Be7 {[%clk 0:02:48]} 9. O-O {[%clk 0:02:51]}  d6 {[%clk 0:02:48]} 10. Qe2 {[%clk 0:02:42]}  Nd7 {[%clk 0:02:47]} 11. exd6 {[%clk 0:02:33]}  cxd6 {[%clk 0:02:43]} 12. c4 {[%clk 0:02:33]}  O-O {[%clk 0:02:40]} 13. c3 {[%clk 0:02:17]}  Re8 {[%clk 0:02:35]} 14. Rae1 {[%clk 0:02:02]}  Qc7 {[%clk 0:02:33]} 15. Bg5 {[%clk 0:01:48]}  Bf8 {[%clk 0:02:28]} 16. Bf4 {[%clk 0:01:39]}  Rac8 {[%clk 0:02:10]} 17. Bb1 {[%clk 0:00:45]}  Qxc4 {[%clk 0:02:00]} 18. Bxh7+ {[%clk 0:00:42]}  Kxh7 {[%clk 0:01:28]} 19. Ng5+ {[%clk 0:00:41]}  Kg6 {[%clk 0:01:28]} 20. Qg4 {[%clk 0:00:30]}  Nf6 {[%clk 0:01:24]} 21. Qg3 {[%clk 0:00:23]}  Nh5 {[%clk 0:01:17]} 22. Qg4 {[%clk 0:00:21]}  f5 {[%clk 0:01:15]} 23. Qh4 {[%clk 0:00:15]}  Qd5 {[%clk 0:01:01]} 24. Nf3 {[%clk 0:00:02]}  Nxf4 {[%clk 0:00:41]} 25. Qxf4 {[%clk 0:00:01]}  Be7 {[%clk 0:00:40]} 26. Re5 {[%clk 0:00:01]}  dxe5 {[%clk 0:00:35]} 27. Nxe5+ {[%clk 0:00:02]}  Kh7 {[%clk 0:00:31]} 28. Qg3 {[%clk 0:00:01]}  Qxg2+ {[%clk 0:00:21]} 29. Qxg2 {[%clk 0:00:02]}  Bxg2 {[%clk 0:00:21]} 30. Kxg2 {[%clk 0:00:03]} 0-1


[Site "https://www.chess.com"]

[Event "Titled Tuesday Blitz December 13 Early 2022"]
[White "Molina Carretero, Daniel"]
[Black "Matinian, Nikita"]
[WhiteFideId "32071914"]
[BlackFideId "24129100"]
[WhiteElo "2109"]
[BlackElo "2422"]
[Result "0-1"]
[Round "01"]
[TimeControl "180+1"]
[Date "2022.12.14"]
[WhiteClock "0:00:52"]
[BlackClock "0:00:56"]

1. c4 {[%clk 0:02:58]}  Nf6 {[%clk 0:02:43]} 2. g3 {[%clk 0:02:58]}  e6 {[%clk 0:02:43]} 3. Nf3 {[%clk 0:02:57]}  d5 {[%clk 0:02:44]} 4. b3 {[%clk 0:02:57]}  d4 {[%clk 0:02:39]} 5. Bg2 {[%clk 0:02:56]}  Nc6 {[%clk 0:02:40]} 6. O-O {[%clk 0:02:56]}  a5 {[%clk 0:02:40]} 7. e3 {[%clk 0:02:43]}  Bc5 {[%clk 0:02:39]} 8. Bb2 {[%clk 0:02:41]}  O-O {[%clk 0:02:39]} 9. Re1 {[%clk 0:02:17]}  e5 {[%clk 0:02:39]} 10. exd4 {[%clk 0:02:17]}  exd4 {[%clk 0:02:38]} 11. d3 {[%clk 0:02:16]}  h6 {[%clk 0:02:36]} 12. Na3 {[%clk 0:02:16]}  Bf5 {[%clk 0:02:35]} 13. Nb5 {[%clk 0:02:13]}  Nb4 {[%clk 0:02:29]} 14. Bf1 {[%clk 0:02:04]}  Nc6 {[%clk 0:02:20]} 15. Ne5 {[%clk 0:01:59]}  Re8 {[%clk 0:01:41]} 16. Nxc6 {[%clk 0:01:55]}  Rxe1 {[%clk 0:01:38]} 17. Qxe1 {[%clk 0:01:30]}  bxc6 {[%clk 0:01:37]} 18. Na3 {[%clk 0:01:29]}  Qd6 {[%clk 0:01:31]} 19. Nc2 {[%clk 0:01:27]}  Ng4 {[%clk 0:01:22]} 20. Qd2 {[%clk 0:01:12]}  Ne5 {[%clk 0:01:20]} 21. Ne1 {[%clk 0:01:11]}  Bb4 {[%clk 0:01:17]} 22. Qe2 {[%clk 0:00:58]}  Bg4 {[%clk 0:00:57]} 23. f3 {[%clk 0:00:57]}  Bxe1 {[%clk 0:00:58]} 24. fxg4 {[%clk 0:00:56]}  Bc3 {[%clk 0:00:58]} 25. Re1 {[%clk 0:00:52]}  Bxe1 {[%clk 0:00:56]} 0-1


[Site "https://www.chess.com"]

[Event "Titled Tuesday Blitz December 13 Early 2022"]
[White "Morefield, Jason"]
[Black "Mestnikov, Aisen"]
[WhiteFideId "30920825"]
[BlackFideId "34130117"]
[WhiteElo "2171"]
[BlackElo "2027"]
[Result "1-0"]
[Round "01"]
[TimeControl "180+1"]
[Date "2022.12.14"]
[WhiteClock "0:00:36"]
[BlackClock "0:00:08"]

1. e4 {[%clk 0:03:00]}  e5 {[%clk 0:02:58]} 2. Nf3 {[%clk 0:03:00]}  Nc6 {[%clk 0:02:58]} 3. Bb5 {[%clk 0:02:59]}  a6 {[%clk 0:02:58]} 4. Ba4 {[%clk 0:02:59]}  Nge7 {[%clk 0:02:58]} 5. O-O {[%clk 0:02:57]}  g6 {[%clk 0:02:58]} 6. c4 {[%clk 0:02:56]}  Bg7 {[%clk 0:02:58]} 7. Nc3 {[%clk 0:02:57]}  O-O {[%clk 0:02:58]} 8. d3 {[%clk 0:02:57]}  f5 {[%clk 0:02:53]} 9. Re1 {[%clk 0:02:53]}  f4 {[%clk 0:02:53]} 10. Nd5 {[%clk 0:02:38]}  h6 {[%clk 0:02:48]} 11. Bd2 {[%clk 0:02:28]}  g5 {[%clk 0:02:47]} 12. Bc3 {[%clk 0:02:05]}  Ng6 {[%clk 0:02:46]} 13. d4 {[%clk 0:01:47]}  g4 {[%clk 0:02:46]} 14. Nxe5 {[%clk 0:01:45]}  Ncxe5 {[%clk 0:02:42]} 15. dxe5 {[%clk 0:01:46]}  f3 {[%clk 0:02:36]} 16. Nf6+ {[%clk 0:01:44]}  Bxf6 {[%clk 0:02:21]} 17. exf6 {[%clk 0:01:44]}  d6 {[%clk 0:02:12]} 18. Qd5+ {[%clk 0:01:32]}  Kh7 {[%clk 0:02:03]} 19. g3 {[%clk 0:01:31]}  Rxf6 {[%clk 0:01:45]} 20. Bxf6 {[%clk 0:01:25]}  Qxf6 {[%clk 0:01:46]} 21. e5 {[%clk 0:01:01]}  Nxe5 {[%clk 0:01:45]} 22. c5 {[%clk 0:00:57]}  Qg6 {[%clk 0:00:53]} 23. cxd6 {[%clk 0:00:54]}  cxd6 {[%clk 0:00:47]} 24. Rac1 {[%clk 0:00:47]}  Qh5 {[%clk 0:00:13]} 25. Rc7+ {[%clk 0:00:44]}  Kh8 {[%clk 0:00:10]} 26. Qxd6 {[%clk 0:00:37]}  Nf7 {[%clk 0:00:08]} 27. Qf8+ {[%clk 0:00:36]} 1-0


[Site "https://www.chess.com"]

[Event "Titled Tuesday Blitz December 13 Early 2022"]
[White "Mortazavi, Ali"]
[Black "Keymer, Vincent"]
[WhiteFideId "401323"]
[BlackFideId "12940690"]
[WhiteElo "2339"]
[BlackElo "2600"]
[Result "0-1"]
[Round "01"]
[TimeControl "180+1"]
[Date "2022.12.13"]
[WhiteClock "0:00:08"]
[BlackClock "0:00:25"]

1. Nf3 {[%clk 0:02:58]}  d5 {[%clk 0:02:59]} 2. g3 {[%clk 0:02:59]}  Bg4 {[%clk 0:02:57]} 3. Bg2 {[%clk 0:03:00]}  c6 {[%clk 0:02:58]} 4. O-O {[%clk 0:03:00]}  Nd7 {[%clk 0:02:58]} 5. d3 {[%clk 0:03:01]}  Ngf6 {[%clk 0:02:57]} 6. c4 {[%clk 0:03:01]}  dxc4 {[%clk 0:02:57]} 7. dxc4 {[%clk 0:03:01]}  h6 {[%clk 0:02:57]} 8. Qc2 {[%clk 0:02:53]}  e6 {[%clk 0:02:56]} 9. b3 {[%clk 0:02:52]}  Bf5 {[%clk 0:02:54]} 10. Qd1 {[%clk 0:02:29]}  Be7 {[%clk 0:02:53]} 11. Bb2 {[%clk 0:02:29]}  O-O {[%clk 0:02:54]} 12. Nc3 {[%clk 0:02:29]}  Qc7 {[%clk 0:02:52]} 13. Nd4 {[%clk 0:02:20]}  Bh7 {[%clk 0:02:51]} 14. e3 {[%clk 0:02:20]}  Rad8 {[%clk 0:02:50]} 15. Qe2 {[%clk 0:02:19]}  Nc5 {[%clk 0:02:49]} 16. Rfd1 {[%clk 0:02:14]}  e5 {[%clk 0:02:49]} 17. Nf3 {[%clk 0:01:53]}  Nd3 {[%clk 0:02:49]} 18. h3 {[%clk 0:01:40]}  Rfe8 {[%clk 0:02:21]} 19. Ne1 {[%clk 0:01:30]}  e4 {[%clk 0:02:01]} 20. Rab1 {[%clk 0:01:10]}  Qa5 {[%clk 0:01:48]} 21. Ba1 {[%clk 0:01:04]}  Nxe1 {[%clk 0:01:28]} 22. Rxe1 {[%clk 0:00:59]}  Bb4 {[%clk 0:01:26]} 23. Rec1 {[%clk 0:00:59]}  Rd3 {[%clk 0:01:21]} 24. Na4 {[%clk 0:00:22]}  Rd2 {[%clk 0:01:12]} 25. Qf1 {[%clk 0:00:22]}  Red8 {[%clk 0:00:55]} 26. Bxf6 {[%clk 0:00:21]}  gxf6 {[%clk 0:00:56]} 27. Rd1 {[%clk 0:00:19]}  b5 {[%clk 0:00:49]} 28. cxb5 {[%clk 0:00:18]}  cxb5 {[%clk 0:00:50]} 29. Rxd2 {[%clk 0:00:17]}  Rxd2 {[%clk 0:00:50]} 30. Nb2 {[%clk 0:00:12]}  Qxa2 {[%clk 0:00:49]} 31. Qc1 {[%clk 0:00:12]}  Kg7 {[%clk 0:00:45]} 32. h4 {[%clk 0:00:10]}  Bf5 {[%clk 0:00:28]} 33. Nd1 {[%clk 0:00:10]}  Rc2 {[%clk 0:00:27]} 34. Ra1 {[%clk 0:00:07]}  Rxc1 {[%clk 0:00:28]} 35. Rxa2 {[%clk 0:00:08]}  Rxd1+ {[%clk 0:00:28]} 36. Kh2 {[%clk 0:00:09]}  a5 {[%clk 0:00:28]} 37. g4 {[%clk 0:00:07]}  Bxg4 {[%clk 0:00:27]} 38. Bxe4 {[%clk 0:00:08]}  Rd2 {[%clk 0:00:28]} 39. Ra1 {[%clk 0:00:07]}  f5 {[%clk 0:00:26]} 40. Kg3 {[%clk 0:00:08]}  fxe4 {[%clk 0:00:26]} 41. Kxg4 {[%clk 0:00:08]}  Rxf2 {[%clk 0:00:27]} 42. Rg1 {[%clk 0:00:08]}  Kg6 {[%clk 0:00:26]} 43. Kg3 {[%clk 0:00:07]}  Rf3+ {[%clk 0:00:26]} 44. Kg4 {[%clk 0:00:08]}  h5# {[%clk 0:00:25]} 0-1


[Site "https://www.chess.com"]